bitfinex-derivatives/quotes_BTCF0:USTF0_20250911
["timestamp","ask_amount","ask_price","bid_price","bid_amount"]
[1757553899301,2.42623574,114030.0,114020.0,0.89469118]
[1757553899493,2.86887574,114030.0,114020.0,0.80329594]
[1757553899801,3.22967574,114030.0,114020.0,0.80329594]
[1757553900397,4.36887574,114030.0,114020.0,0.7119007]
[1757553900603,4.36887574,114030.0,114020.0,0.70339524]
[1757553901392,4.72967574,114030.0,114020.0,0.70339524]
[1757553903100,3.69937098,114030.0,114020.0,0.54479048]
[1757553903302,3.00273098,114030.0,114020.0,0.79479048]
[1757553903510,1.7684,114030.0,114020.0,1.73466572]
[1757553903702,2.57172,114030.0,114020.0,1.73466572]
[1757553903900,2.57172,114030.0,114020.0,1.46048]
[1757553904106,2.57172,114030.0,114020.0,1.61721091]
[1757553904407,2.57172,114030.0,114020.0,1.80000139]
[1757553905800,2.57172,114030.0,114020.0,1.64327048]
[1757553909611,1.7684,114030.0,114020.0,1.64327048]
[1757553910003,2.57156,114030.0,114020.0,1.73466572]
[1757553910502,2.57152,114030.0,114020.0,1.84440953]
[1757553910899,2.57152,114030.0,114020.0,1.73466572]
[1757553911604,2.57152,114030.0,114020.0,1.84436727]
[1757553912416,1.7684,114030.0,114020.0,1.84436727]
[1757553912618,2.57148,114030.0,114020.0,1.84436727]
[1757553913307,1.7684,114030.0,114020.0,1.75297203]
[1757553913510,2.57144,114030.0,114020.0,1.75297203]
[1757553913705,2.57144,114030.0,114020.0,1.61721091]
[1757553913901,2.57144,114030.0,114020.0,1.80000139]
[1757553914405,2.57144,114030.0,114020.0,1.89125919]
[1757553915816,2.57144,114030.0,114020.0,2.02828333]
[1757553916219,2.79830476,114030.0,114020.0,2.02828333]
[1757553919822,1.99526476,114030.0,114020.0,2.02828333]
[1757553920011,2.79818476,114030.0,114020.0,2.02828333]
[1757553920213,2.79814476,114030.0,114020.0,2.02828333]
[1757553920409,2.79810476,114030.0,114020.0,2.02828333]
[1757553920718,1.99526476,114030.0,114020.0,2.02828333]
[1757553920917,2.79810476,114030.0,114020.0,2.02828333]
[1757553921816,2.79810476,114030.0,114020.0,1.87155242]
[1757553922017,2.79806476,114030.0,114020.0,1.87155242]
[1757553922312,1.99526476,114030.0,114020.0,1.87155242]
[1757553922512,2.79806476,114030.0,114020.0,1.98114502]
[1757553923214,1.99526476,114030.0,114020.0,1.98114502]
[1757553923413,2.79802476,114030.0,114020.0,1.98114502]
[1757553923612,2.79802476,114030.0,114020.0,1.87155242]
[1757553923812,1.99526476,114030.0,114020.0,1.87155242]
[1757553924013,2.79802476,114030.0,114020.0,1.87155242]
[1757553924213,2.79802476,114030.0,114020.0,2.02828333]
[1757553925815,1.99526476,114030.0,114020.0,2.02828333]
[1757553926021,2.79798476,114030.0,114020.0,2.02828333]
[1757553927019,1.99526476,114030.0,114020.0,2.02828333]
[1757553927221,2.79794476,114030.0,114020.0,2.02828333]
[1757553927821,1.99526476,114030.0,114020.0,2.02828333]
[1757553928023,2.79794476,114030.0,114020.0,2.02828333]
[1757553928323,1.99526476,114030.0,114020.0,2.02828333]
[1757553928525,2.79794476,114030.0,114020.0,2.02828333]
[1757553928723,1.99526476,114030.0,114020.0,2.02828333]
[1757553928924,2.79790476,114030.0,114020.0,2.02828333]
[1757553929822,0.3608,114060.0,114040.0,0.0876629]
[1757553930027,0.43131013,114060.0,114050.0,0.27404828]
[1757553930327,1.23391013,114060.0,114050.0,0.8666464]
[1757553930521,1.46077489,114060.0,114050.0,0.8666464]
[1757553930718,1.09997489,114060.0,114050.0,0.8666464]
[1757553931326,1.10097489,114060.0,114050.0,0.6966464]
[1757553931518,1.10097489,114060.0,114050.0,0.58702414]
[1757553932922,1.10097489,114060.0,114050.0,0.45]
[1757553933128,1.10097489,114060.0,114050.0,0.59702414]
[1757553933329,1.10097489,114060.0,114050.0,0.34]
[1757553933529,1.10097489,114060.0,114050.0,0.60702414]
[1757553934727,0.22786476,114060.0,114050.0,0.60702414]
[1757553934925,1.03038476,114060.0,114050.0,1.19250518]
[1757553935125,1.03038476,114060.0,114050.0,1.76212744]
[1757553937627,0.22786476,114060.0,114050.0,1.76212744]
[1757553937831,1.03030476,114060.0,114050.0,1.89915158]
[1757553938132,1.03030476,114060.0,114050.0,1.65250518]
[1757553939233,1.03030476,114060.0,114050.0,1.72357546]
[1757553939436,0.80344,114060.0,114050.0,1.72357546]
[1757553941135,0.80344,114060.0,114050.0,1.88030637]
[1757553942033,0.80344,114060.0,114050.0,1.72357546]
[1757553943233,1.03030476,114060.0,114050.0,1.72357546]
[1757553949743,1.03030476,114060.0,114050.0,2.08437546]
[1757553949945,1.03030476,114060.0,114050.0,2.19378979]
[1757553952247,0.22786476,114060.0,114050.0,2.19378979]
[1757553952447,1.02998476,114060.0,114050.0,2.33081393]
[1757553952947,1.02998476,114060.0,114050.0,2.19378979]
[1757553953746,1.02998476,114060.0,114050.0,2.08437546]
[1757553960749,1.02998476,114060.0,114050.0,2.24110637]
[1757553961455,1.02998476,114060.0,114050.0,2.08437546]
[1757553964161,1.02998476,114060.0,114050.0,2.24110637]
[1757553967160,1.02998476,114060.0,114050.0,2.08437546]
[1757553967459,1.02998476,114060.0,114050.0,2.24126833]
[1757553970762,1.02998476,114060.0,114050.0,2.08437546]
[1757553971362,0.22786476,114060.0,114050.0,2.08437546]
[1757553971562,1.02958476,114060.0,114050.0,2.08437546]
[1757553972264,1.02958476,114060.0,114050.0,2.28861025]
[1757553973168,1.03158476,114060.0,114050.0,2.28861025]
[1757553974873,0.22986476,114060.0,114050.0,2.28861025]
[1757553975072,1.03150476,114060.0,114050.0,2.28861025]
[1757553976369,1.01377755,114060.0,114050.0,2.19715285]
[1757553977170,1.01177755,114060.0,114050.0,1.99291806]
[1757553977366,1.01377755,114060.0,114050.0,1.99291806]
[1757553982269,1.01377755,114060.0,114050.0,2.19715285]
[1757553990686,1.01377755,114060.0,114050.0,2.35404191]
[1757553990982,1.01377755,114060.0,114050.0,2.14980712]
[1757553993284,1.01377755,114060.0,114050.0,2.19715285]
[1757553993787,1.01377755,114060.0,114050.0,2.35403936]
[1757553994385,1.01377755,114060.0,114050.0,2.17144848]
[1757553994587,1.01377755,114060.0,114050.0,2.14980457]
[1757553996385,1.01377755,114060.0,114050.0,1.99291806]
[1757553998188,1.01377755,114060.0,114050.0,2.19715285]
[1757553999288,0.80364,114060.0,114050.0,2.19715285]
[1757554006195,0.80312,114060.0,114050.0,2.19715285]
[1757554007498,0.80312,114060.0,114050.0,2.21191285]
[1757554022615,0.80312,114060.0,114050.0,2.16456062]
[1757554022808,0.002,114060.0,114050.0,2.16456062]
[1757554023002,0.80284,114060.0,114050.0,2.16456062]
[1757554023415,0.80284,114060.0,114050.0,2.00767806]
[1757554025008,0.80284,114060.0,114050.0,2.21191285]
[1757554026714,0.002,114060.0,114050.0,2.21191285]
[1757554026921,0.80276,114060.0,114050.0,2.21191285]
[1757554030819,0.80276,114060.0,114050.0,2.02932197]
[1757554031020,0.80276,114060.0,114050.0,2.21191285]
[1757554038321,0.80276,114060.0,114050.0,2.09899802]
[1757554039514,0.002,114060.0,114050.0,2.09899802]
[1757554039721,0.80256,114060.0,114050.0,2.09899802]
[1757554041316,1.53660839,114060.0,114050.0,1.05456975]
[1757554041519,1.68727084,114060.0,114050.0,0.3744322]
[1757554041815,1.68727084,114060.0,114050.0,0.43456975]
[1757554042021,1.68727084,114060.0,114050.0,0.57152517]
[1757554042223,1.68727084,114060.0,114050.0,0.32476]
[1757554043017,1.68727084,114060.0,114050.0,0.43456975]
[1757554043424,1.68727084,114060.0,114050.0,0.46171542]
[1757554045428,1.68727084,114060.0,114050.0,0.32476]
[1757554051233,0.88671084,114060.0,114050.0,0.32476]
[1757554051436,1.68727084,114060.0,114050.0,0.32476]
[1757554055435,0.88671084,114060.0,114050.0,0.32476]
[1757554055637,1.68719084,114060.0,114050.0,0.32476]
[1757554059442,1.43719084,114060.0,114050.0,0.32476]
[1757554059640,0.63671084,114060.0,114050.0,0.32476]
[1757554059845,1.43719084,114060.0,114050.0,0.32476]
[1757554060340,1.68719084,114060.0,114050.0,0.32476]
[1757554060544,1.82414626,114060.0,114050.0,0.32476]
[1757554060735,1.82414626,114060.0,114050.0,0.25875079]
[1757554060935,1.82414626,114060.0,114050.0,0.27405079]
[1757554063346,1.68719084,114060.0,114050.0,0.27405079]
[1757554063844,1.82414626,114060.0,114050.0,0.27405079]
[1757554064144,0.88671084,114060.0,114050.0,0.27405079]
[1757554064446,1.68715084,114060.0,114050.0,0.27405079]
[1757554065436,1.68715084,114060.0,114050.0,0.09]
[1757554065641,1.68715084,114060.0,114050.0,0.0153]
[1757554065841,1.68715084,114060.0,114050.0,0.3253]
[1757554066352,1.81647835,114060.0,114050.0,0.3253]
[1757554068054,1.95343377,114060.0,114050.0,0.3253]
[1757554068654,1.81647835,114060.0,114050.0,0.3253]
[1757554069258,1.01603835,114060.0,114050.0,0.3253]
[1757554069455,1.81647835,114060.0,114050.0,0.3253]
[1757554072462,1.81647835,114060.0,114050.0,0.21872225]
[1757554072651,1.81647835,114060.0,114050.0,0.18265225]
[1757554072852,1.95343377,114060.0,114050.0,0.18265225]
[1757554073558,1.97856094,114060.0,114050.0,0.18265225]
[1757554074361,1.17812094,114060.0,114050.0,0.18265225]
[1757554074552,1.84160552,114060.0,114050.0,0.18265225]
[1757554075863,1.04116552,114060.0,114050.0,0.18265225]
[1757554076063,1.84156552,114060.0,114050.0,0.18265225]
[1757554077474,1.98716552,114060.0,114050.0,0.18265225]
[1757554079871,1.18676552,114060.0,114050.0,0.18265225]
[1757554080071,1.98712552,114060.0,114050.0,0.18265225]
[1757554086778,1.98712552,114060.0,114050.0,0.16445492]
[1757554087684,1.98712552,114060.0,114050.0,0.35456]
[1757554087982,2.12408094,114060.0,114050.0,0.33503978]
[1757554088175,2.12408094,114060.0,114050.0,0.34959978]
[1757554090383,3.89240094,114060.0,114050.0,0.34959978]
[1757554092483,3.89240094,114060.0,114050.0,0.33960978]
[1757554093184,2.95508552,114060.0,114050.0,0.33960978]
[1757554093480,3.75528552,114060.0,114050.0,0.33960978]
[1757554094489,3.75533539,114060.0,114050.0,0.33960978]
[1757554095889,3.75533539,114060.0,114050.0,0.32440978]
[1757554097585,3.60973539,114060.0,114050.0,0.32440978]
[1757554098392,3.49340287,114060.0,114050.0,0.32440978]
[1757554098581,3.31064751,114060.0,114050.0,0.32440978]
[1757554098887,3.49340287,114060.0,114050.0,0.32440978]
[1757554105691,3.49340287,114060.0,114050.0,0.31830978]
[1757554107684,3.63900287,114060.0,114050.0,0.31830978]
[1757554107884,3.49340287,114060.0,114050.0,0.31830978]
[1757554111698,3.5185893,114060.0,114050.0,0.31830978]
[1757554112390,2.69320287,114060.0,114050.0,0.31830978]
[1757554112598,3.49316287,114060.0,114050.0,0.31830978]
[1757554115197,2.69320287,114060.0,114050.0,0.31830978]
[1757554115498,3.49316287,114060.0,114050.0,0.31830978]
[1757554119401,3.24316287,114060.0,114050.0,0.31830978]
[1757554120697,2.26044751,114060.0,114050.0,0.31830978]
[1757554120902,3.06032751,114060.0,114050.0,0.34366978]
[1757554121104,3.24308287,114060.0,114050.0,0.34366978]
[1757554123806,3.24308287,114060.0,114050.0,0.31830978]
[1757554124303,2.35182519,114060.0,114050.0,0.34366978]
[1757554124498,3.02233768,114060.0,114050.0,0.34366978]
[1757554124901,2.93096,114060.0,114050.0,0.68504746]
[1757554127309,4.43096,114060.0,114050.0,0.68504746]
[1757554127810,4.43088,114060.0,114050.0,0.68504746]
[1757554128208,3.63112,114060.0,114050.0,0.68504746]
[1757554128410,4.43088,114060.0,114050.0,0.68504746]
[1757554128910,4.43088,114060.0,114050.0,0.59366978]
[1757554129110,4.43088,114060.0,114050.0,0.68504746]
[1757554130111,4.52225768,114060.0,114050.0,0.59366978]
[1757554133014,4.61363536,114060.0,114050.0,0.59366978]
[1757554134009,3.45501304,114060.0,114050.0,0.28101389]
[1757554136418,3.45501304,114060.0,114050.0,0.21427803]
[1757554137520,3.45501304,114060.0,114050.0,0.21204803]
[1757554143026,3.45501304,114060.0,114050.0,0.20712803]
[1757554143618,3.45501304,114060.0,114050.0,0.18558803]
[1757554144225,3.45501304,114060.0,114050.0,0.14758803]
[1757554144624,3.45501304,114060.0,114050.0,0.31456]
[1757554146028,3.45501304,114060.0,114050.0,0.27646]
[1757554146228,3.45501304,114060.0,114050.0,0.29142]
[1757554147030,2.65525304,114060.0,114050.0,0.29142]
[1757554147228,3.45477304,114060.0,114050.0,0.29142]
[1757554160332,3.59186044,114060.0,114050.0,0.29142]
[1757554163543,3.61240757,114060.0,114050.0,0.29142]
[1757554166444,3.36240757,114060.0,114050.0,0.26643]
[1757554167644,3.36240757,114060.0,114050.0,0.17831]
[1757554167843,3.36240757,114060.0,114050.0,0.11305001]
[1757554168254,3.36240757,114060.0,114050.0,0.35496]
[1757554169443,2.56288757,114060.0,114050.0,0.35496]
[1757554169641,3.36208757,114060.0,114050.0,0.35496]
[1757554171041,2.56288757,114060.0,114050.0,0.35496]
[1757554171246,3.36204757,114060.0,114050.0,0.35496]
[1757554172144,2.56288757,114060.0,114050.0,0.35496]
[1757554172350,3.36200757,114060.0,114050.0,0.38039]
[1757554173450,2.56288757,114060.0,114050.0,0.38039]
[1757554173751,3.36200757,114060.0,114050.0,0.38039]
[1757554182368,3.36200757,114060.0,114050.0,0.35496]
[1757554182960,3.36188757,114060.0,114050.0,0.38039]
[1757554184164,3.36188757,114060.0,114050.0,0.35496]
[1757554185267,3.36188757,114060.0,114050.0,0.31807125]
[1757554185471,3.36188757,114060.0,114050.0,0.33256125]
[1757554189069,3.72268757,114060.0,114050.0,0.33256125]
[1757554189464,2.92368757,114060.0,114050.0,0.35799125]
[1757554189777,3.72256757,114060.0,114050.0,0.35799125]
[1757554196067,3.31134713,114060.0,114050.0,0.35799125]
[1757554196270,3.72256757,114060.0,114050.0,0.35799125]
[1757554198069,3.72248757,114060.0,114050.0,0.35799125]
[1757554199861,3.86808757,114060.0,114050.0,0.35799125]
[1757554201370,3.06928757,114060.0,114050.0,0.35799125]
[1757554201571,3.74766645,114060.0,114050.0,0.35799125]
[1757554201768,2.81187297,114060.0,114050.0,0.35799125]
[1757554201970,3.61059297,114060.0,114050.0,0.35799125]
[1757554202674,3.58533409,114060.0,114050.0,0.35799125]
[1757554209377,2.78661409,114060.0,114050.0,0.35799125]
[1757554209579,3.58521409,114060.0,114050.0,0.35799125]
[1757554209972,3.58521409,114060.0,114050.0,0.60799125]
[1757554210272,2.51246713,114060.0,114050.0,0.60799125]
[1757554210474,3.58517409,114060.0,114050.0,0.60799125]
[1757554212582,3.31102713,114060.0,114050.0,0.60799125]
[1757554212878,3.58517409,114060.0,114050.0,0.60799125]
[1757554217385,5.08517409,114060.0,114050.0,0.60799125]
[1757554218078,4.01246713,114060.0,114050.0,0.35799125]
[1757554218285,2.51246713,114060.0,114050.0,0.74506473]
[1757554218684,3.31086713,114060.0,114050.0,0.86506473]
[1757554218884,2.51246713,114060.0,114050.0,0.87506473]
[1757554219084,2.58926713,114060.0,114050.0,0.87506473]
[1757554219384,1.79086713,114060.0,114050.0,1.12194796]
[1757554219583,2.58926713,114060.0,114050.0,0.98487448]
[1757554219985,2.58826713,114060.0,114050.0,0.98487448]
[1757554220385,2.58826713,114060.0,114050.0,0.83031103]
[1757554220688,2.58726713,114060.0,114050.0,0.83031103]
[1757554220886,2.58726713,114060.0,114050.0,0.94012078]
[1757554221384,2.58726713,114060.0,114050.0,0.94112078]
[1757554221588,2.57726713,114060.0,114050.0,0.719801]
[1757554221883,2.57726713,114060.0,114050.0,0.95112078]
[1757554222086,1.77886713,114060.0,114050.0,0.95112078]
[1757554222287,2.55668,114060.0,114050.0,0.95112078]
[1757554222680,2.55668,114060.0,114050.0,1.80324056]
[1757554222886,2.55668,114060.0,114050.0,1.71192078]
[1757554224887,2.55668,114060.0,114050.0,1.35112078]
[1757554225087,2.55668,114060.0,114050.0,1.71192078]
[1757554229590,2.55668,114060.0,114050.0,1.60211103]
[1757554229990,2.55668,114060.0,114050.0,1.71192078]
[1757554233196,2.55668,114060.0,114050.0,1.60211103]
[1757554233691,2.55668,114060.0,114050.0,1.69343081]
[1757554233899,2.55668,114060.0,114050.0,1.51079125]
[1757554234091,2.55668,114060.0,114050.0,1.69343081]
[1757554234290,2.55668,114060.0,114050.0,1.60211103]
[1757554234591,2.55668,114060.0,114050.0,1.51079125]
[1757554234794,2.55668,114060.0,114050.0,1.60211103]
[1757554234996,2.55668,114060.0,114050.0,1.69343081]
[1757554235197,2.47964,114060.0,114050.0,1.89089746]
[1757554235495,2.4026,114060.0,114050.0,1.89089746]
[1757554235697,2.28704,114060.0,114050.0,1.89089746]
[1757554235897,2.24852,114060.0,114050.0,1.89089746]
[1757554237193,2.24852,114060.0,114050.0,1.87640746]
[1757554237194,1.29608,114060.0,114050.0,1.87640746]
[1757554237405,2.10819,114060.0,114050.0,1.87640746]
[1757554237700,2.10819,114060.0,114050.0,1.58395815]
[1757554237899,2.10819,114060.0,114050.0,2.12739771]
[1757554239301,2.10819,114060.0,114050.0,1.87739771]
[1757554243705,2.10819,114060.0,114050.0,1.69475815]
[1757554243906,2.10819,114060.0,114050.0,1.87739771]
[1757554244411,2.10819,114060.0,114050.0,1.98691486]
[1757554246815,2.10819,114060.0,114050.0,1.87739771]
[1757554249411,2.10819,114060.0,114050.0,1.60710125]
[1757554249613,2.10819,114060.0,114050.0,1.87739771]
[1757554252116,1.31019,114060.0,114050.0,1.87739771]
[1757554252415,2.10795,114060.0,114050.0,1.87739771]
[1757554255113,2.10795,114060.0,114050.0,1.69475815]
[1757554255318,2.10795,114060.0,114050.0,1.78607793]
[1757554255517,2.10795,114060.0,114050.0,1.69475815]
[1757554255718,2.10795,114060.0,114050.0,1.87739771]
[1757554257217,1.31019,114060.0,114050.0,1.87739771]
[1757554257417,2.10791,114060.0,114050.0,1.87739771]
[1757554260316,2.10791,114060.0,114050.0,1.98718352]
[1757554261918,2.10791,114060.0,114050.0,1.89586374]
[1757554262222,2.10791,114060.0,114050.0,1.98718352]
[1757554262921,2.10791,114060.0,114050.0,1.87739771]
[1757554267020,2.10787,114060.0,114050.0,1.87739771]
[1757554267220,0.81179,114060.0,114050.0,2.03426505]
[1757554269125,0.81179,114060.0,114050.0,2.12774932]
[1757554270723,0.01411,114060.0,114050.0,2.12774932]
[1757554270928,0.81175,114060.0,114050.0,2.12774932]
[1757554272922,0.01411,114060.0,114050.0,2.12774932]
[1757554273123,0.81175,114060.0,114050.0,2.12774932]
[1757554273624,0.81175,114060.0,114050.0,2.12874932]
[1757554274329,0.81175,114060.0,114050.0,2.12974932]
[1757554274521,0.81175,114060.0,114050.0,2.12874932]
[1757554274729,0.81175,114060.0,114050.0,2.13174932]
[1757554277631,0.81175,114060.0,114050.0,2.33598411]
[1757554277835,0.81175,114060.0,114050.0,2.17911677]
[1757554281531,0.81175,114060.0,114050.0,2.33607147]
[1757554282336,0.81175,114060.0,114050.0,2.42732721]
[1757554282635,0.81175,114060.0,114050.0,2.22309242]
[1757554284539,0.01411,114060.0,114050.0,2.22309242]
[1757554284742,0.81167,114060.0,114050.0,2.22309242]
[1757554285741,0.81167,114060.0,114050.0,2.06613772]
[1757554286243,0.81167,114060.0,114050.0,2.27037251]
[1757554287343,0.81167,114060.0,114050.0,2.06613772]
[1757554290244,0.81167,114060.0,114050.0,1.79224242]
[1757554290444,0.81167,114060.0,114050.0,2.06613772]
[1757554292140,1.06167,114060.0,114050.0,1.70458552]
[1757554292346,1.06167,114060.0,114050.0,1.84153317]
[1757554293049,1.06167,114060.0,114050.0,1.97848082]
[1757554293242,1.06167,114060.0,114050.0,1.70458552]
[1757554293445,1.06167,114060.0,114050.0,1.97848082]
[1757554295448,1.06167,114060.0,114050.0,1.70458552]
[1757554295649,1.06167,114060.0,114050.0,1.97848082]
[1757554296151,1.06167,114060.0,114050.0,1.70458552]
[1757554296347,1.06167,114060.0,114050.0,1.97848082]
[1757554296650,1.06167,114060.0,114050.0,1.84153317]
[1757554296854,1.22325765,114060.0,114050.0,1.17378552]
[1757554297047,1.08631,114060.0,114050.0,1.31073317]
[1757554297652,1.08631,114060.0,114050.0,1.46777453]
[1757554297951,1.22325765,114060.0,114050.0,1.10697453]
[1757554298140,1.3602053,114060.0,114050.0,0.97002688]
[1757554298345,1.58405765,114060.0,114050.0,0.59450317]
[1757554299247,1.33405765,114060.0,114050.0,0.59450317]
[1757554299652,1.7210053,114060.0,114050.0,0.52744012]
[1757554300755,1.7210053,114060.0,114050.0,0.66438777]
[1757554302154,1.7210053,114060.0,114050.0,0.52744012]
[1757554304257,1.7210053,114060.0,114050.0,0.66438777]
[1757554304455,1.7210053,114060.0,114050.0,0.55450317]
[1757554304656,1.7210053,114060.0,114050.0,0.41755552]
[1757554306267,1.44711,114060.0,114050.0,0.41755552]
[1757554306468,1.7210053,114060.0,114050.0,0.41755552]
[1757554307266,1.7209653,114060.0,114050.0,0.41755552]
[1757554307466,1.7209653,114060.0,114050.0,0.55450317]
[1757554307661,0.78649765,114060.0,114050.0,0.55450317]
[1757554308061,1.58401765,114060.0,114050.0,0.55450317]
[1757554308264,0.78649765,114060.0,114050.0,0.55450317]
[1757554308465,1.58401765,114060.0,114050.0,0.55450317]
[1757554310770,0.78649765,114060.0,114050.0,0.55450317]
[1757554310964,1.58405765,114060.0,114050.0,0.55450317]
[1757554311164,0.78649765,114060.0,114050.0,0.55450317]
[1757554311374,1.58405765,114060.0,114050.0,0.55450317]
[1757554312470,1.58405765,114060.0,114050.0,0.41755552]
[1757554312670,1.58405765,114060.0,114050.0,0.55450317]
[1757554315271,3.35193765,114060.0,114050.0,0.55450317]
[1757554316974,3.35193765,114060.0,114050.0,0.41755552]
[1757554317375,3.35193765,114060.0,114050.0,0.55450317]
[1757554320575,3.21499,114060.0,114050.0,0.55450317]
[1757554320776,3.35193765,114060.0,114050.0,0.55450317]
[1757554321479,2.41743,114060.0,114050.0,0.66438777]
[1757554321778,3.35189765,114060.0,114050.0,0.55450317]
[1757554322078,3.35189765,114060.0,114050.0,0.66438777]
[1757554324077,3.35189765,114060.0,114050.0,0.55450317]
[1757554324579,3.35189765,114060.0,114050.0,0.66438777]
[1757554324973,3.35189765,114060.0,114050.0,0.52744012]
[1757554325170,3.35189765,114060.0,114050.0,0.66438777]
[1757554325479,2.55437765,114060.0,114050.0,0.66438777]
[1757554325680,3.35189765,114060.0,114050.0,0.66438777]
[1757554326380,3.35189765,114060.0,114050.0,0.65638777]
[1757554326783,3.35189765,114060.0,114050.0,0.51944012]
[1757554327079,3.35189765,114060.0,114050.0,0.65638777]
[1757554328380,3.21495,114060.0,114050.0,0.65638777]
[1757554329181,1.80663,114060.0,114050.0,1.54413542]
[1757554329384,2.60415,114060.0,114050.0,1.15345082]
[1757554330083,2.60415,114060.0,114050.0,1.51425082]
[1757554332780,2.60415,114060.0,114050.0,1.37730317]
[1757554333376,2.74109765,114060.0,114050.0,1.02035552]
[1757554333679,3.10189765,114060.0,114050.0,0.79650317]
[1757554334279,3.2388453,114060.0,114050.0,0.51963078]
[1757554335785,3.2388453,114060.0,114050.0,0.40955552]
[1757554340490,2.96495,114060.0,114050.0,0.40955552]
[1757554340789,3.2388453,114060.0,114050.0,0.40955552]
[1757554341991,3.2388453,114060.0,114050.0,0.51963078]
[1757554342191,2.4413253,114060.0,114050.0,0.51963078]
[1757554342388,2.96531,114060.0,114050.0,0.65657843]
[1757554342586,3.2392053,114060.0,114050.0,0.65657843]
[1757554342788,3.10225765,114060.0,114050.0,0.65657843]
[1757554343484,2.30437765,114060.0,114050.0,0.65657843]
[1757554343989,3.10301765,114060.0,114050.0,0.65657843]
[1757554344291,2.96607,114060.0,114050.0,0.61096221]
[1757554345394,2.16743,114060.0,114050.0,0.61096221]
[1757554345689,2.96607,114060.0,114050.0,0.61096221]
[1757554346394,2.96607,114060.0,114050.0,0.50088695]
[1757554347494,3.05740143,114060.0,114050.0,0.50088695]
[1757554350200,2.25876143,114060.0,114050.0,0.50088695]
[1757554350496,3.05692143,114060.0,114050.0,0.50088695]
[1757554350998,2.96559,114060.0,114050.0,0.50088695]
[1757554351199,3.05692143,114060.0,114050.0,0.50088695]
[1757554351399,3.05692143,114060.0,114050.0,0.61096221]
[1757554355502,2.96531,114060.0,114050.0,0.61096221]
[1757554355699,3.05664143,114060.0,114050.0,0.50088695]
[1757554357006,3.05664143,114060.0,114050.0,0.40955552]
[1757554358900,2.96531,114060.0,114050.0,0.40955552]
[1757554359206,3.05664143,114060.0,114050.0,0.40955552]
[1757554359710,3.14797286,114060.0,114050.0,0.51963078]
[1757554360910,2.96531,114060.0,114050.0,0.51963078]
[1757554361211,3.14797286,114060.0,114050.0,0.51963078]
[1757554361709,3.14797286,114060.0,114050.0,0.40955552]
[1757554362710,3.05664143,114060.0,114050.0,0.40955552]
[1757554364213,3.14797286,114060.0,114050.0,0.40955552]
[1757554365212,3.05664143,114060.0,114050.0,0.40955552]
[1757554366911,2.25876143,114060.0,114050.0,0.40955552]
[1757554367111,3.05692143,114060.0,114050.0,0.40955552]
[1757554367715,3.05692143,114060.0,114050.0,0.51963078]
[1757554367916,3.05692143,114060.0,114050.0,0.61096221]
[1757554370620,3.05692143,114060.0,114050.0,0.50088695]
[1757554371125,3.05692143,114060.0,114050.0,0.40955552]
[1757554373522,3.05692143,114060.0,114050.0,0.51963078]
[1757554375118,3.05692143,114060.0,114050.0,0.40955552]
[1757554376615,2.25876143,114060.0,114050.0,0.40955552]
[1757554376822,3.05724143,114060.0,114050.0,0.50088695]
[1757554377324,2.25876143,114060.0,114050.0,0.50088695]
[1757554377709,3.05716143,114060.0,114050.0,0.50088695]
[1757554377916,3.05716143,114060.0,114050.0,0.40955552]
[1757554379423,3.05716143,114060.0,114050.0,0.51963078]
[1757554388427,2.69636143,114060.0,114050.0,0.51963078]
[1757554388631,3.05716143,114060.0,114050.0,0.51963078]
[1757554391127,3.05716143,114060.0,114050.0,0.40955552]
[1757554391432,3.05716143,114060.0,114050.0,0.51963078]
[1757554392626,3.05716143,114060.0,114050.0,0.40955552]
[1757554394630,3.05716143,114060.0,114050.0,0.51963078]
[1757554397827,3.05716143,114060.0,114050.0,0.61096221]
[1757554398228,3.05716143,114060.0,114050.0,0.51963078]
[1757554402636,3.05640143,114060.0,114050.0,0.61096221]
[1757554403032,3.05640143,114060.0,114050.0,0.51963078]
[1757554403536,3.14773286,114060.0,114050.0,0.51963078]
[1757554403929,3.05640143,114060.0,114050.0,0.51963078]
[1757554404327,3.23911932,114060.0,114050.0,0.65465544]
[1757554404635,3.23911932,114060.0,114050.0,0.65365544]
[1757554405436,2.96507,114060.0,114050.0,0.65365544]
[1757554405636,3.23911932,114060.0,114050.0,0.65365544]
[1757554407837,3.23911932,114060.0,114050.0,0.51663078]
[1757554411136,3.25919893,114060.0,114050.0,0.51663078]
[1757554414537,3.25919893,114060.0,114050.0,0.40655552]
[1757554415238,3.25919893,114060.0,114050.0,0.65365544]
[1757554420041,3.25919893,114060.0,114050.0,0.51663078]
[1757554421243,3.25919893,114060.0,114050.0,0.65365544]
[1757554422145,2.46155893,114060.0,114050.0,0.65365544]
[1757554422450,3.25915893,114060.0,114050.0,0.65365544]
[1757554430347,2.98510961,114060.0,114050.0,0.65365544]
[1757554430545,3.25915893,114060.0,114050.0,0.65365544]
[1757554431441,3.25915893,114060.0,114050.0,0.54358018]
[1757554433348,3.25915893,114060.0,114050.0,0.65365544]
[1757554435648,2.46155893,114060.0,114050.0,0.65365544]
[1757554435948,2.98502961,114060.0,114050.0,0.65365544]
[1757554436147,3.12205427,114060.0,114050.0,0.65365544]
[1757554436348,2.32453427,114060.0,114050.0,0.65365544]
[1757554436549,3.12205427,114060.0,114050.0,0.65365544]
[1757554441052,3.12205427,114060.0,114050.0,0.54358018]
[1757554442647,2.18750961,114060.0,114050.0,0.67358018]
[1757554442946,2.98498961,114060.0,114050.0,0.67358018]
[1757554443154,2.98498961,114060.0,114050.0,0.78365544]
[1757554443451,2.18750961,114060.0,114050.0,0.78365544]
[1757554443648,3.12201427,114060.0,114050.0,0.65365544]
[1757554446954,2.98498961,114060.0,114050.0,0.65365544]
[1757554447156,3.12201427,114060.0,114050.0,0.65365544]
[1757554447857,2.76121427,114060.0,114050.0,0.65365544]
[1757554448256,3.12201427,114060.0,114050.0,0.54358018]
[1757554450849,3.12201427,114060.0,114050.0,0.65365544]
[1757554452257,3.12197427,114060.0,114050.0,0.65365544]
[1757554453552,3.12197427,114060.0,114050.0,0.54358018]
[1757554454959,3.12197427,114060.0,114050.0,0.55358018]
[1757554455760,2.32453427,114060.0,114050.0,0.55358018]
[1757554456058,3.12193427,114060.0,114050.0,0.55358018]
[1757554457657,2.16743,114060.0,114050.0,1.52060484]
[1757554457857,2.96483,114060.0,114050.0,1.52060484]
[1757554458047,2.60403,114060.0,114050.0,1.88140484]
[1757554458859,1.78199,114060.0,114050.0,2.1261031]
[1757554459059,2.57939,114060.0,114050.0,2.26312776]
[1757554459362,2.57939,114060.0,114050.0,2.1261031]
[1757554462049,1.78199,114060.0,114050.0,2.26312776]
[1757554462255,2.57931,114060.0,114050.0,2.26312776]
[1757554462455,1.78199,114060.0,114050.0,2.26312776]
[1757554462655,2.57931,114060.0,114050.0,2.26312776]
[1757554463057,0.01411,114070.0,114060.0,0.0876492]